Workbook

Sheet LGE IS BP vs 12 Mo Preceding
A1: LOUISVILLE GAS AND ELECTRIC COMPANY
A2: CASE NO. 2025-00114
A3: COMPARISON OF BASE PERIOD AND MOST RECENT 12 MONTHS PRECEDING THE BASE PERIOD
A4: INCOME STATEMENT
B7: Total Company | D7: Total Company
B8: 2025-08-31 | D8: 2024-08-31
A9: Title of Account | B9: Base Period | D9: YECM | F9: Variance | G9: Explanations on variances greater than $1 million
A11: Operating Revenues
A12: Electric Operating Revenues | B12: 1285080578 | D12: =D48 -> 1270865470 | F12: =B12-D12 -> 14215108.33 | G12: Higher electric revenue primarily due to higher off-system sales revenue and higher fuel revenue due primarily to higher fuel prices, partially offset by lower ECR revenue.
A13: Gas Operating Revenues | B13: 390355591.5 | D13: =D73 -> 349666931.3 | F13: =B13-D13 -> 40688660.16 | G13: Higher gas revenue primarily due to higher gas supply cost recovery due to higher gas distribution volumes and higher gas supply prices.
A14: Total Operating Revenues | B14: =SUM(B12:B13) -> 1675436169 | D14: =SUM(D12:D13) -> 1620532401 | F14: =B14-D14 -> 54903768.5
A16: Operating Expenses
A17: Fuel for Electric Generation | B17: 326087107.4 | D17: =D52 -> 298469155.7 | F17: =B17-D17 -> 27617951.68 | G17: Higher fuel expense due primarily to higher fuel prices.
A18: Power Purchased | B18: 59800761.5 | D18: =D53 -> 65222408.38 | F18: -5421646.88 | G18: Decrease primarily due to lower power purchased from KU.
A19: Gas Supply Expenses | B19: 110930421 | D19: =D77 -> 86640031.62 | F19: 24290389.42 | G19: Higher gas supply expenses due primarily to higher gas distribution volumes and higher gas supply prices.
A20: Other Operation Expenses | B20: 233294557 | D20: =D54+D78 -> 239910403.2 | F20: -6615846.273 | G20: Lower other operations expense primarily due to lower meter reading expenses, lower customer billing expenses, lower outside services (reclassification of computer services due to FERC 898) and higher beneficial reuse proceeds, partially offset by higher transmission depancaking expenses, higher bad debt expense and higher DSM program expenses.
A21: Maintenance | B21: 105724614.7 | D21: 101124403.2 | F21: 4600211.57 | G21: Higher other maintenance primarily due to higher overhead distribution line maintenance and computer software maintenance (reclassification of computer services due to FERC 898).
A22: Depreciation & Amortization Expense | B22: 299760322.8 | D22: 301596522.4 | F22: -1836199.541 | G22: Decrease is due to the retirement of Mill Creek Unit 1 during the base period, partially offset by an increase in other plant-in-service.
A23: Regulatory Debits | B23: 14126277.15 | D23: 4926736.87 | F23: 9199540.281 | G23: Increase is due primarily to AMI O&M savings and amortization of the Retired Asset Recovery Rider that starts during the base period.
A24: Regulatory Credits | B24: -1033251.55 | D24: -450751.89 | F24: -582499.66
A25: Income Taxes | B25: 75062940.49 | D25: 73181109.98 | F25: 1881830.513 | G25: Higher income taxes primarily due to the timing of ASC 740 effective tax rate adjustments in the 12-month period ended August 31, 2024.
A26: Property and Other Taxes | B26: 59670216.16 | D26: 59496253.25 | F26: 173962.9125
A27: Investment Tax Credit (net amortization) | B27: -794748.8023 | D27: -901219.33 | F27: 106470.5277
A28: Loss (Gain) from Disposition of Allowances | B28: -164445.05 | D28: =D62 -> -34.65 | F28: -164410.4
A29: Total Operating Expenses | B29: =SUM(B17:B28) -> 1282464773 | D29: =SUM(D17:D28) -> 1229215019 | F29: 53249754.16
A31: Net Operating Income | B31: =B14-B29 -> 392971396.6 | D31: =D14-D29 -> 391317382.2 | F31: =B31-D31 -> 1654014.341
A33: AFUDC - Equity | B33: 10641879.18 | D33: 4845846.33 | F33: =B33-D33 -> 5796032.854 | G33: Increase due to additional AMI and New Generation CWIP eligible for AFUDC treatment.
A34: Other Income Less Deductions | B34: 1483911.154 | D34: 1450531.98 | F34: =B34-D34 -> 33379.17426
A36: Income before Interest Charges | B36: =B31+B33+B34 -> 405097186.9 | D36: =D31+D33+D34 -> 397613760.5 | F36: =B36-D36 -> 7483426.369
A38: Interest Charges | B38: 108445389.7 | D38: 103068373 | F38: =B38-D38 -> 5377016.677 | G38: Increase primarily due to higher debt balances.
A40: Net Income | B40: =B36-B38 -> 296651797.2 | D40: =D36-D38 -> 294545387.5 | F40: =B40-D40 -> 2106409.693
B43: Electric Only | D43: Electric Only
B44: =B8 -> 2025-08-31 | D44: =D8 -> 2024-08-31
A45: Title of Account | B45: Base Period | D45: YECM | F45: Variance
A47: Operating Revenues
A48: Electric Operating Revenues | B48: 1285080578 | D48: 1270865470 | F48: =B48-D48 -> 14215108.33 | G48: Higher electric revenue primarily due to higher off-system sales revenue and higher fuel revenue due primarily to higher fuel prices, partially offset by lower ECR revenue.
A49: Total Operating Revenues | B49: =SUM(B48) -> 1285080578 | D49: =SUM(D48) -> 1270865470 | F49: =B49-D49 -> 14215108.33
A51: Operating Expenses
A52: Fuel for Electric Generation | B52: 326087107.4 | D52: 298469155.7 | F52: =B52-D52 -> 27617951.68 | G52: Higher fuel expense due primarily to higher fuel prices.
A53: Power Purchased | B53: 59800761.5 | D53: 65222408.38 | F53: -5421646.88 | G53: Decrease primarily due to lower power purchased from KU.
A54: Other Operation Expenses | B54: 163709664.7 | D54: 172426577.9 | F54: -8716913.193 | G54: Lower other operations expense primarily due to lower meter reading expenses, lower customer billing expenses, lower outside services (reclassification of computer services due to FERC 898) and higher beneficial reuse proceeds, partially offset by higher transmission depancaking expenses, higher bad debt expense and higher DSM program expenses.
A55: Maintenance | B55: 81708069.09 | D55: 78369502.87 | F55: 3338566.218 | G55: Higher other maintenance primarily due to higher overhead distribution line maintenance and computer software maintenance (reclassification of computer services due to FERC 898).
A56: Depreciation & Amortization Expense | B56: 249025605.8 | D56: 251760511.8 | F56: -2734906.043 | G56: Decrease is due to the retirement of Mill Creek Unit 1 during the base period, partially offset by an increase in other plant-in-service.
A57: Regulatory Debits | B57: 11538077.88 | D57: 4769832.78 | F57: 6768245.098 | G57: Increase is due primarily to AMI O&M savings and amortization of the Retired Asset Recovery Rider that starts during the base period.
A58: Regulatory Credits | B58: -817718.4892 | D58: -282486.69 | F58: -535231.7992
A59: Income Taxes | B59: 53927313.18 | D59: 54286699.15 | F59: -359385.9739
A60: Property and Other Taxes | B60: 43977283.53 | D60: 44247657.41 | F60: -270373.8833
A61: Investment Tax Credit (net amortization) | B61: -794748.8023 | D61: -901174.33 | F61: 106425.5277
A62: Loss (Gain) from Disposition of Allowances | B62: -164445.05 | D62: -34.65 | F62: -164410.4
A63: Total Operating Expenses | B63: =SUM(B52:B62) -> 987996970.7 | D63: =SUM(D52:D62) -> 968368650.4 | F63: 19628320.36
A65: Net Operating Income | B65: =B49-B63 -> 297083607.2 | D65: =D49-D63 -> 302496819.2 | F65: =B65-D65 -> -5413212.021
B68: Gas Only | D68: Gas Only
B69: =B44 -> 2025-08-31 | D69: =D44 -> 2024-08-31
A70: Title of Account | B70: Base Period | D70: YECM | F70: Variance
A72: Operating Revenues
A73: Gas Operating Revenues | B73: 390355591.5 | D73: 349666931.3 | F73: =B73-D73 -> 40688660.16 | G73: Higher gas revenue primarily due to higher gas supply cost recovery due to higher gas distribution volumes and higher gas supply prices.
A74: Total Operating Revenues | B74: =SUM(B73) -> 390355591.5 | D74: =SUM(D73) -> 349666931.3 | F74: =B74-D74 -> 40688660.16
A76: Operating Expenses
A77: Gas Supply Expenses | B77: 110930421 | D77: 86640031.62 | F77: =B77-D77 -> 24290389.42 | G77: Higher gas supply expenses due primarily to higher gas distribution volumes and higher gas supply prices.
A78: Other Operation Expenses | B78: 69584892.27 | D78: 67483825.35 | F78: 2101066.92 | G78: Higher other operations expense primarily due to higher DSM program expenses and higher bad debt expense, partially offset by lower meter reading expenses, lower customer billing expenses, and lower outside services (reclassification of computer services due to FERC 898).
A79: Maintenance | B79: 24016545.65 | D79: 22754900.3 | F79: 1261645.352 | G79: Higher other maintenance primarily due to higher computer software maintenance (reclassification of computer services due to FERC 898), partially offset by lower gas distribution and transmission maintenance.
A80: Depreciation & Amortization Expense | B80: 50734717.02 | D80: 49836010.52 | F80: 898706.502
A81: Regulatory Debits | B81: 2588199.272 | D81: 156904.09 | F81: 2431295.182 | G81: Increase is due to AMI O&M savings.
A82: Regulatory Credits | B82: -215533.0608 | D82: -168265.2 | F82: -47267.8608
A83: Income Taxes | B83: 21135627.32 | D83: 18894410.83 | F83: 2241216.487 | G83: Increase is primarily due to higher pre-tax income.
A84: Property and Other Taxes | B84: 15692932.64 | D84: 15248595.84 | F84: 444336.7958
A85: Investment Tax Credit (net amortization) | B85: 0 | D85: -45 | F85: 45
A86: Total Operating Expenses | B86: =SUM(B77:B85) -> 294467802.2 | D86: =SUM(D77:D85) -> 260846368.4 | F86: 33621433.8
A88: Net Operating Income | B88: =B74-B86 -> 95887789.35 | D88: =D74-D86 -> 88820562.99 | F88: =B88-D88 -> 7067226.362

Sheet LGE TC RB Aug 24 vs Base Period
A2: LOUISVILLE GAS AND ELECTRIC COMPANY
A3: CASE NO. 2025-00114
A4: COMPARISON OF BASE PERIOD AND MOST RECENT 12 MONTHS PRECEDING THE BASE PERIOD
A5: RATE BASE - TOTAL COMPANY
E10: Total Company | G10: Total Company
E11: Rate Base | G11: Rate Base
B12: Title of Account | E12: Base Period | G12: 2024-08-31 | I12: Variance
A14: =1 -> 1 | B14: Utility Plant at Original Cost (a) | E14: 9863483789 | G14: 9391007873 | I14: =E14-G14 -> 472475915.5
A16: =1+A14 -> 2 | B16: Deduct:
A17: =1+A16 -> 3 | B17: Reserve for Depreciation (a) | E17: 3219459038 | G17: 3137305524 | I17: =E17-G17 -> 82153513.59
A19: =1+A17 -> 4 | B19: Net Utility Plant | E19: =+E14-E17 -> 6644024751 | G19: =+G14-G17 -> 6253702349 | I19: =+I14-I17 -> 390322401.9
A21: =1+A19 -> 5 | B21: Deduct:
A22: =A21+1 -> 6 | B22: Customer Advances for Construction | E22: 8317556.11 | G22: 5878437 | I22: =E22-G22 -> 2439119.11
A23: =A22+1 -> 7 | B23: Accumulated Deferred Income Taxes (a) | E23: 1242155085 | G23: 1237050133 | I23: 5104951.611
A25: =1+A23 -> 8 | B25: Total Deductions | E25: =SUM(E22:E24) -> 1250472641 | G25: =SUM(G22:G24) -> 1242928570 | I25: =SUM(I22:I24) -> 7544070.721
A27: =1+A25 -> 9 | B27: Net Plant Deductions | E27: =+E19-E25 -> 5393552110 | G27: =+G19-G25 -> 5010773779 | I27: =+I19-I25 -> 382778331.2
A29: =1+A27 -> 10 | B29: Add:
A30: =A29+1 -> 11 | B30: Material and Supplies | E30: 113700529.9 | G30: 103584573 | I30: =E30-G30 -> 10115956.92
A31: =A30+1 -> 12 | B31: Gas Stored Underground | E31: 29451006.89 | G31: 27524585.7 | I31: 1926421.187
A32: =A31+1 -> 13 | B32: Prepayments (b) | E32: 10597768.76 | G32: 13152520.48 | I32: -2554751.718
A33: 14 | B33: Cash Working Capital | E33: 195963861.1 | G33: =E33 -> 195963861.1 | I33: 0
A34: 15 | B34: Unamortized Closure Costs | E34: 73529965.01 | G34: ='LGE E RB Aug 24 vs Base Period'!G34 -> 63484663.76 | I34: 10045301.25
A36: =1+A34 -> 16 | B36: Total Additions | E36: =SUM(E30:E35) -> 423243131.7 | G36: =SUM(G30:G35) -> 403710204.1 | I36: =SUM(I30:I35) -> 19532927.64
A38: =1+A36 -> 17 | B38: Total Net Original Cost Rate Base | E38: =+E27+E36 -> 5816795242 | G38: =+G27+G36 -> 5414483983 | I38: =+I27+I36 -> 402311258.9
A41: (a) | B41: Common utility plant and the reserve for depreciation are allocated 69% to the Electric Department and 31% to the Gas Department for 2024 and 68% and 32% for 2025.
A42: (b) | B42: Excludes PSC Fees & Indiana Property Tax.
E47: 0

Sheet LGE E RB Aug 24 vs Base Period
A2: LOUISVILLE GAS AND ELECTRIC COMPANY
A3: CASE NO. 2025-00114
A4: COMPARISON OF BASE PERIOD AND MOST RECENT 12 MONTHS PRECEDING THE BASE PERIOD
A5: RATE BASE - ELECTRIC
E9: Total | G9: Total
E10: Electric | G10: Electric
E11: Rate Base | G11: Rate Base
B12: Title of Account | E12: Base Period | G12: 2024-08-31 | I12: Variance | K12: Explanations on variances greater than $1 million
A14: =1 -> 1 | B14: Utility Plant at Original Cost (a) | E14: 7701769670 | G14: 7421563332 | I14: =E14-G14 -> 280206338.4 | K14: Additional capital spend from August 2024 through August 2025.
A16: =1+A14 -> 2 | B16: Deduct:
A17: =1+A16 -> 3 | B17: Reserve for Depreciation (a) | E17: 2673628125 | G17: 2626948039 | I17: =E17-G17 -> 46680086.42 | K17: Additional capital spend from August 2024 through August 2025.
A19: =1+A17 -> 4 | B19: Net Utility Plant | E19: =+E14-E17 -> 5028141545 | G19: =+G14-G17 -> 4794615293 | I19: =+I14-I17 -> 233526252
A21: =1+A19 -> 5 | B21: Deduct:
A22: =A21+1 -> 6 | B22: Customer Advances for Construction | E22: 4629354.104 | G22: 2230212 | I22: =E22-G22 -> 2399142.104 | K22: Increase primarily due to third party pole attachments.
A23: =A22+1 -> 7 | B23: Accumulated Deferred Income Taxes (a) | E23: 971055582.2 | G23: 979172389 | I23: -8116806.775 | K23: Decrease is primarily due to amortization of excess deferred income taxes.
A25: =1+A23 -> 8 | B25: Total Deductions | E25: =SUM(E22:E24) -> 975684936.3 | G25: =SUM(G22:G24) -> 981402601 | I25: =SUM(I22:I24) -> -5717664.671
A27: =1+A25 -> 9 | B27: Net Plant Deductions | E27: =+E19-E25 -> 4052456609 | G27: =+G19-G25 -> 3813212692 | I27: =+I19-I25 -> 239243916.7
A29: =1+A27 -> 10 | B29: Add:
A30: =A29+1 -> 11 | B30: Material and Supplies | E30: 111315961.2 | G30: 101245329 | I30: =E30-G30 -> 10070632.17 | K30: Decrease primarily due to an increase in both fuel inventories and other materials and supplies.
A31: =A30+1 -> 12 | B31: Gas Stored Underground | E31: 0 | G31: 0 | I31: 0
A32: =A31+1 -> 13 | B32: Prepayments (b) | E32: 8733102.957 | G32: 10263098.63 | I32: -1529995.673 | K32: Decrease primarily due to lower IT Hardware/Software prepayments and payment timing variances partially offset by higher insurance premiums.
A33: 14 | B33: Cash Working Capital | E33: 143223929.5 | G33: =E33 -> 143223929.5 | I33: 0
A34: 15 | B34: Unamortized Closure Costs | E34: 73529965.01 | G34: 63484663.76 | I34: 10045301.25 | K34: Increase due to additional ARO CCR capital spend from September 2023 through August 2024.
A36: =1+A34 -> 16 | B36: Total Additions | E36: =SUM(E30:E35) -> 336802958.6 | G36: =SUM(G30:G35) -> 318217020.9 | I36: =SUM(I30:I35) -> 18585937.75
A38: =1+A36 -> 17 | B38: Total Net Original Cost Rate Base | E38: =+E27+E36 -> 4389259567 | G38: =+G27+G36 -> 4131429713 | I38: =+I27+I36 -> 257829854.4
A41: (a) | B41: Common utility plant and the reserve for depreciation are allocated 69% to the Electric Department and 31% to the Gas Department for 2024 and 68% and 32% for 2025.
A42: (b) | B42: Excludes PSC Fees & Indiana Property Tax.
E47: 0

Sheet LGE G RB Aug 24 vs Base Period
A2: LOUISVILLE GAS AND ELECTRIC COMPANY
A3: CASE NO. 2025-00114
A4: COMPARISON OF BASE PERIOD AND MOST RECENT 12 MONTHS PRECEDING THE BASE PERIOD
A5: RATE BASE - GAS
E10: Total Gas | G10: Total Gas
E11: Rate Base | G11: Rate Base
B12: Title of Account | E12: Base Period | G12: 2024-08-31 | I12: Variance | K12: Explanations on variances greater than $1 million
A14: =1 -> 1 | B14: Utility Plant at Original Cost (a) | E14: 2161714118 | G14: 1969444541 | I14: =E14-G14 -> 192269577.1 | K14: Additional capital spend from August 2024 through August 2025.
A16: =1+A14 -> 2 | B16: Deduct:
A17: =1+A16 -> 3 | B17: Reserve for Depreciation (a) | E17: 545830912.2 | G17: 510357485 | I17: =E17-G17 -> 35473427.17 | K17: Additional capital spend from August 2024 through August 2025.
A19: =1+A17 -> 4 | B19: Net Utility Plant | E19: =+E14-E17 -> 1615883206 | G19: =+G14-G17 -> 1459087056 | I19: =+I14-I17 -> 156796149.9
A21: =1+A19 -> 5 | B21: Deduct:
A22: =A21+1 -> 6 | B22: Customer Advances for Construction | E22: 3688202.006 | G22: 3648225 | I22: =E22-G22 -> 39977.00626
A23: =A22+1 -> 7 | B23: Accumulated Deferred Income Taxes (a) | E23: 271099502.4 | G23: 257877744 | I23: 13221758.39 | K23: Increase is primarily due to tax deductions from accelerated tax over book depreciation.
A25: =1+A23 -> 8 | B25: Total Deductions | E25: =SUM(E22:E24) -> 274787704.4 | G25: =SUM(G22:G24) -> 261525969 | I25: =SUM(I22:I24) -> 13261735.39
A27: =1+A25 -> 9 | B27: Net Plant Deductions | E27: =+E19-E25 -> 1341095502 | G27: =+G19-G25 -> 1197561087 | I27: =+I19-I25 -> 143534414.5
A29: =1+A27 -> 10 | B29: Add:
A30: =A29+1 -> 11 | B30: Material and Supplies | E30: 2384568.747 | G30: 2339244 | I30: =E30-G30 -> 45324.74744
A31: =A30+1 -> 12 | B31: Gas Stored Underground | E31: 29451006.89 | G31: 27524585.7 | I31: 1926421.187 | K31: Primarily due to an increase in the average price of stored gas volumes.
A32: =A31+1 -> 13 | B32: Prepayments (b) | E32: 1864665.806 | G32: 2889421.85 | I32: -1024756.044 | K32: Decrease primarily due to lower IT Hardware/Software prepayments and payment timing variances partially offset by higher insurance premiums.
A33: 14 | B33: Cash Working Capital | E33: 52739931.67 | G33: =E33 -> 52739931.67 | I33: 0
A34: 15 | B34: Unamortized Closure Costs | E34: 0 | G34: 0 | I34: 0
G35: .
A36: =+A34+1 -> 16 | B36: Total Additions | E36: =SUM(E30:E35) -> 86440173.11 | G36: =SUM(G30:G35) -> 85493183.22 | I36: =SUM(I30:I35) -> 946989.8898
A38: =1+A36 -> 17 | B38: Total Net Original Cost Rate Base | E38: =+E27+E36 -> 1427535675 | G38: =+G27+G36 -> 1283054270 | I38: =+I27+I36 -> 144481404.4
A41: (a) | B41: Common utility plant and the reserve for depreciation are allocated 69% to the Electric Department and 31% to the Gas Department for 2024 and 68% and 32% for 2025.
A42: (b) | B42: Excludes PSC Fees & Indiana Property Tax.
E45: 0

Sheet CAPITAL STRUCTURE
A1: LOUISVILLE GAS AND ELECTRIC COMPANY
A2: CASE NO. 2025-00114
A3: COMPARISON OF BASE PERIOD AND MOST RECENT 12 MONTHS PRECEDING THE BASE PERIOD
A4: CAPITAL STRUCTURE
A7: LINE NO. | B7: CLASS OF CAPITAL | C7: BASE PERIOD AMOUNT | E7: BASE PERIOD RATIO | G7: AUGUST 2024 AMOUNT | I7: AUGUST 2024 RATIO | K7: VARIANCE AMOUNT
C8: $ | E8: % | G8: $ | I8: % | K8: $
B9: TOTAL COMPANY:
A10: 1 | B10: SHORT-TERM DEBT | C10: 0 | E10: =C10/$C$16 -> 0 | G10: 1439.33 | I10: =G10/$G$16 -> 2.689972012e-07 | K10: =C10-G10 -> -1439.33
A12: 2 | B12: LONG-TERM DEBT(1) | C12: 3254735412 | E12: =C12/$C$16 -> 0.5138993812 | G12: 2460694018 | I12: =G12/$G$16 -> 0.4598805026 | K12: =C12-G12 -> 794041393.4 | M12: (a)
A14: 3 | B14: COMMON EQUITY | C14: 3078674455 | E14: =C14/$C$16 -> 0.4861006188 | G14: 2890029360 | I14: =G14/$G$16 -> 0.5401192284 | K14: 188645095.2 | M14: (b)
A16: 4 | B16: TOTAL CAPITAL | C16: =SUM(C10:C14) -> 6333409867 | E16: =SUM(E10:E14) -> 1 | G16: =SUM(G10:G14) -> 5350724817 | I16: =SUM(I10:I14) -> 1 | K16: 982685049.2
A19: LINE NO. | B19: CLASS OF CAPITAL | C19: BASE PERIOD AMOUNT | E19: BASE PERIOD RATIO | G19: AUGUST 2024 AMOUNT | I19: =I7 -> AUGUST 2024 RATIO | K19: VARIANCE AMOUNT
C20: $ | E20: % | G20: $ | I20: % | K20: $ | P20: Base | Q20: 2024-08-01
B21: ELECTRIC: | P21: Juris % | Q21: Juris %
A22: 1 | B22: SHORT-TERM DEBT | C22: 0 | E22: =C22/$C$28 -> 0 | G22: =G10*Q22 -> 1098.256223 | I22: =G22/$G$28 -> 2.689972012e-07 | K22: =C22-G22 -> -1098.256223 | P22: 0.7546 | Q22: ='LGE E RB Aug 24 vs Base Period'!G38/'LGE TC RB Aug 24 vs Base Period'!G38 -> 0.7630329549
A24: 2 | B24: LONG-TERM DEBT(1) | C24: 2456023342 | E24: =C24/$C$28 -> 0.5138993812 | G24: =G12*Q24 -> 1877590628 | I24: =G24/$G$28 -> 0.4598805026 | K24: =C24-G24 -> 578432713.8 | Q24: =Q22 -> 0.7630329549
A26: 3 | B26: COMMON EQUITY | C26: 2323167744 | E26: =C26/$C$28 -> 0.4861006188 | G26: =G14*Q26 -> 2205187642 | I26: =G26/$G$28 -> 0.5401192284 | K26: =C26-G26 -> 117980101.6 | Q26: =Q22 -> 0.7630329549
A28: 4 | B28: TOTAL CAPITAL | C28: =SUM(C22:C26) -> 4779191085 | E28: =SUM(E22:E26) -> 1 | G28: =SUM(G22:G26) -> 4082779368 | I28: =SUM(I22:I26) -> 1 | K28: 696411717.1 | P28: =C28/C16 -> 0.7546 | Q28: =G28/G16 -> 0.7630329549
A31: LINE NO. | B31: CLASS OF CAPITAL | C31: BASE PERIOD AMOUNT | E31: BASE PERIOD RATIO | G31: =G19 -> AUGUST 2024 AMOUNT | I31: =I19 -> AUGUST 2024 RATIO | K31: VARIANCE AMOUNT
C32: $ | E32: % | G32: $ | I32: % | K32: $ | P32: Base | Q32: =Q20 -> 2024-08-01
B33: GAS: | P33: Juris % | Q33: Juris %
A34: 1 | B34: SHORT-TERM DEBT | C34: 0 | E34: =C34/$C$40 -> 0 | G34: =G10*Q34 -> 341.073777 | I34: =G34/$G$40 -> 2.689972012e-07 | K34: =C34-G34 -> -341.073777 | P34: 0.2454 | Q34: ='LGE G RB Aug 24 vs Base Period'!G38/'LGE TC RB Aug 24 vs Base Period'!G38 -> 0.2369670451
A36: 2 | B36: LONG-TERM DEBT(1) | C36: 798712070 | E36: =C36/$C$40 -> 0.5138993812 | G36: =G12*Q36 -> 583103390.4 | I36: =G36/$G$40 -> 0.4598805026 | K36: =C36-G36 -> 215608679.6 | Q36: =Q34 -> 0.2369670451
A38: 3 | B38: COMMON EQUITY | C38: 755506711.3 | E38: =C38/$C$40 -> 0.4861006188 | G38: =G14*Q38 -> 684841717.7 | I38: =G38/$G$40 -> 0.5401192284 | K38: =C38-G38 -> 70664993.61 | Q38: =Q34 -> 0.2369670451
A40: 4 | B40: TOTAL CAPITAL | C40: =SUM(C34:C38) -> 1554218781 | E40: =SUM(E34:E38) -> 1 | G40: =SUM(G34:G38) -> 1267945449 | I40: =SUM(I34:I38) -> 1 | K40: 286273332.1 | P40: =C40/C16 -> 0.2454 | Q40: =G40/G16 -> 0.2369670451
A42: (1) | B42: Includes the debt discount and premium, unamortized debt expense, and unamortized loss on reacquired debt
B44: Explanations of variances greater than $1 million:
A45: (a) | B45: Increase due to forecasted First Mortgage Bond issuance in Q3 2025.
A46: (b) | B46: Reflects net income net of dividends paid and capital contribution.
